Workbook

Sheet Расходы
B3: Бюджет мероприятия [Название мероприятия]
H4: Расходы
H6: Предполагаемые | I6: Фактические
C7: Общие расходы | H7: =SUM(D14,D22,D28,D35,H14,H22,H27) -> 1,145.00 ₽ | I7: =SUM(E14,E22,E28,E35,I14,I22,I27) -> 395.00 ₽
C9: Место проведения | D9: Предполагаемые | E9: Фактические | G9: Угощения | H9: Предполагаемые | I9: Фактические
C10: Арендная плата | D10: 500.00 ₽ | E10: 250.00 ₽ | G10: Еда
C11: Обслуживающий персонал | D11: 400.00 ₽ | E11: 50.00 ₽ | G11: Напитки
C12: Оборудование | G12: Скатерти
C13: Столы и стулья | G13: Обслуживающий персонал и чаевые
C14: Итог | D14: =SUBTOTAL(109,Таблица1[Предполагаемые]) -> 900.00 ₽ | E14: =SUBTOTAL(109,Таблица1[Фактические]) -> 300.00 ₽ | G14: Итог | H14: =SUBTOTAL(109,Table5[Предполагаемые]) -> 0.00 ₽ | I14: =SUBTOTAL(109,Table5[Фактические]) -> 0.00 ₽
C16: Украшения | D16: Предполагаемые | E16: Фактические | G16: Программа | H16: Предполагаемые | I16: Фактические
C17: Цветы | D17: 200.00 ₽ | E17: 50.00 ₽ | G17: Исполнители
C18: Свечи | G18: Докладчики
C19: Освещение | G19: Транспорт
C20: Воздушные шары | G20: Гостиница
C21: Запасы бумаги | G21: Другое
C22: Итог | D22: =SUBTOTAL(109,Таблица2[Предполагаемые]) -> 200.00 ₽ | E22: =SUBTOTAL(109,Таблица2[Фактические]) -> 50.00 ₽ | G22: Итог | H22: =SUBTOTAL(109,Таблица6[Предполагаемые]) -> 0.00 ₽ | I22: =SUBTOTAL(109,Таблица6[Фактические]) -> 0.00 ₽
C24: Реклама | D24: Предполагаемые | E24: Фактические | G24: Призы | H24: Предполагаемые | I24: Фактические
C25: Графический дизайн | D25: 45.00 ₽ | E25: 45.00 ₽ | G25: Ленты, таблички, награды
C26: Фотокопирование и печать | G26: Подарки
C27: Почтовые расходы | G27: Итог | H27: =SUBTOTAL(109,Таблица7[Предполагаемые]) -> 0.00 ₽ | I27: =SUBTOTAL(109,Таблица7[Фактические]) -> 0.00 ₽
C28: Итог | D28: =SUBTOTAL(109,Таблица3[Предполагаемые]) -> 45.00 ₽ | E28: =SUBTOTAL(109,Таблица3[Фактические]) -> 45.00 ₽
C30: Прочее | D30: Предполагаемые | E30: Фактические
C31: Телефон
C32: Транспорт
C33: Канцтовары
C34: Службы факсов
C35: Итог | D35: =SUBTOTAL(109,Таблица4[Предполагаемые]) -> 0.00 ₽ | E35: =SUBTOTAL(109,Таблица4[Фактические]) -> 0.00 ₽

Sheet Доходы
B3: Бюджет мероприятия [Название мероприятия]
F4: Доходы
F6: Предполагаемые | G6: Фактические
B7: Общие доходы | F7: =SUM(F14,F21,F28,F36) -> 1,936.00 ₽ | G7: =SUM(G14,G21,G28,G36) -> 1,831.00 ₽
B9: Билеты
B10: Предполагаемые | C10: Фактические | F10: Предполагаемые | G10: Фактические
B11: 300 | C11: 278 | D11: Взрослые @ | E11: 5.00 ₽ | F11: =B11*E11 -> 1,500.00 ₽ | G11: =C11*E11 -> 1,390.00 ₽
B12: 197 | C12: 195 | D12: Дети @ | E12: 2.00 ₽ | F12: =B12*E12 -> 394.00 ₽ | G12: =C12*E12 -> 390.00 ₽
B13: 42 | C13: 51 | D13: Другие @ | E13: 1.00 ₽ | F13: =B13*E13 -> 42.00 ₽ | G13: =C13*E13 -> 51.00 ₽
F14: =SUM(F11:F13) -> 1,936.00 ₽ | G14: =SUM(G11:G13) -> 1,831.00 ₽
B16: Реклама в программе
B17: Предполагаемые | C17: Фактические | F17: Предполагаемые | G17: Фактические
D18: Обложка @ | F18: =B18*E18 -> 0.00 ₽ | G18: =C18*E18 -> 0.00 ₽
D19: Половина страницы @ | F19: =B19*E19 -> 0.00 ₽ | G19: =C19*E19 -> 0.00 ₽
D20: Четверть страницы @ | F20: =B20*E20 -> 0.00 ₽ | G20: =C20*E20 -> 0.00 ₽
F21: =SUM(F18:F20) -> 0.00 ₽ | G21: =SUM(G18:G20) -> 0.00 ₽
B23: Экспоненты и продавцы
B24: Предполагаемые | C24: Фактические | F24: Предполагаемые | G24: Фактические
D25: Большие стенды @ | F25: =B25*E25 -> 0.00 ₽ | G25: =C25*E25 -> 0.00 ₽
D26: Средние стенды @ | F26: =B26*E26 -> 0.00 ₽ | G26: =C26*E26 -> 0.00 ₽
D27: Маленькие стенды @ | F27: =B27*E27 -> 0.00 ₽ | G27: =C27*E27 -> 0.00 ₽
F28: =SUM(F25:F27) -> 0.00 ₽ | G28: =SUM(G25:G27) -> 0.00 ₽
B30: Продажа товаров
B31: Предполагаемые | C31: Фактические | F31: Предполагаемые | G31: Фактические
D32: Товары @ | F32: =B32*E32 -> 0.00 ₽ | G32: =C32*E32 -> 0.00 ₽
D33: Товары @ | F33: =B33*E33 -> 0.00 ₽ | G33: =C33*E33 -> 0.00 ₽
D34: Товары @ | F34: =B34*E34 -> 0.00 ₽ | G34: =C34*E34 -> 0.00 ₽
D35: Товары @ | F35: =B35*E35 -> 0.00 ₽ | G35: =C35*E35 -> 0.00 ₽
F36: =SUM(F32:F35) -> 0.00 ₽ | G36: =SUM(G32:G35) -> 0.00 ₽

Sheet Сводка
B3: Бюджет мероприятия [Название мероприятия]
F4: Сводка по прибыли и убыткам
F6: Предполагаемые | G6: Фактические
B7: Общий доход | F7: =Доходы!F7 -> 1,936.00 ₽ | G7: =Доходы!G7 -> 1,831.00 ₽
B8: Общие расходы | F8: =Расходы!H7 -> 1,145.00 ₽ | G8: =Расходы!I7 -> 395.00 ₽
B9: Общая прибыль (или убытки) | F9: =F7-F8 -> 791.00 ₽ | G9: =G7-G8 -> 1,436.00 ₽
